fUSD/lending_fUSD_20250331
["ID","MTS","AMOUNT","RATE_DAILY","PERIOD"]
[356941805,1743460232403,-422.33372091,0.00015,2]
[356941873,1743460237997,-547.34602063,0.00015,2]
[356941874,1743460238082,-298.0,0.00015,2]
[356941875,1743460238170,-6663.96946359,0.00015,2]
[356941885,1743460240374,-0.00881293,0.00015,2]
[356941886,1743460240611,-676.11940303,0.00015,2]
[356941897,1743460243484,-2669.26,0.00015,2]
[356941898,1743460243567,-1718.02,0.00015,2]
[356941899,1743460244907,-1645.8934959,0.00015,2]
[356941900,1743460246113,-286.70002602,0.00014932,2]
[356941901,1743460246122,-30379.04274841,0.00015,2]
[356941902,1743460246207,-265.71195595,0.00015,2]
[356941903,1743460246218,-824.6,0.00015,2]
[356941904,1743460246234,-2456.98319422,0.00015,2]
[356941905,1743460246386,-475.72044319,0.00015,2]
[356941908,1743460261338,1236.92410796,0.0001485,2]
[356941909,1743460317056,-222.4034628,0.00014932,2]
[356941910,1743460317080,-10.0545372,0.00014932,2]
[356941911,1743460331506,151.0,0.00033859,30]
[356941912,1743460332132,156.587,0.00033859,30]
[356941913,1743460332750,162.380719,0.00033859,30]
[356941914,1743460333383,168.3888056,0.00033859,30]
[356941915,1743460334574,174.61919141,0.00033859,30]
[356941916,1743460335210,174.61919141,0.00033859,30]
[356941917,1743460350225,-171.04350908,0.00014931,2]
[356941918,1743460623802,151.0,0.00033858,30]
[356941919,1743460624430,151.0,0.00033858,30]
[356941920,1743460660345,879.31708953,0.000149,2]
[356941921,1743460660376,74.19424557,0.000149,2]
[356941922,1743460681720,642.10975148,0.000149,2]
[356941923,1743460692971,5944.58110295,0.000149,2]
[356941924,1743460742017,-150.0,0.00014899,2]
[356941925,1743460758822,-150.0,0.00014899,2]
[356941926,1743460765360,-150.0,0.000149,2]
[356941927,1743460771554,-226.6748,0.000149,2]
[356941928,1743460813407,-150.82708736,0.000149,2]
[356941929,1743460818855,-528.39849637,0.0002,4]
[356941930,1743460893517,2620.60601,0.0002352,31]
[356941931,1743460893610,2620.60601,0.0002365,31]
[356941932,1743460893661,2620.60602,0.0002396,32]
[356941933,1743460893779,2620.60601,0.0002427,33]
[356941934,1743460893820,2620.60601,0.000249,34]
[356941935,1743460893879,2620.60602,0.0002459,33]
[356941936,1743460936329,154.9748851,0.00015,13]
[356941937,1743460969225,-191.13335068,0.000149,2]
[356941938,1743460969247,-222.4034628,0.000149,2]
[356941939,1743460969268,-275.35382262,0.000149,2]
[356941940,1743460969291,-174.80079013,0.000149,2]
[356941941,1743460969314,-428.07316764,0.000149,2]
[356941942,1743460969337,-150.0,0.00014916,2]
[356941943,1743460969359,-184.23670196,0.00014932,2]
[356941944,1743460969381,-506.13332845,0.00014973,2]
[356941945,1743460969403,-618.11885499,0.00014973,2]
[356941946,1743460969425,-678.39849637,0.0001499,2]
[356941947,1743460969447,-300.0,0.00014999,2]
[356941948,1743460969473,-307035.34802436,0.00015,2]
[356941949,1743461019526,-217.90954179,0.000149,2]
[356941950,1743461019554,-720435.09045821,0.00015,2]
[356941951,1743461041962,350.0,0.00015,12]
[356941952,1743461059523,-310.94680023,0.00014999,2]
[356941953,1743461059546,-517.09188311,0.00014999,2]
[356941954,1743461059570,-587387.96131666,0.00015,2]
[356941955,1743461060710,-300.0,0.00015,2]
[356941956,1743461096043,-150.0,0.00015,2]
[356941957,1743461100235,-706734.0,0.00015,2]
[356941958,1743461101589,-202.59119274,0.00015,2]
[356941959,1743461134892,-300.0,0.00014999,2]
[356941960,1743461134913,-150.0,0.00014999,2]
[356941961,1743461134937,-712249.0,0.00015,2]
[356941962,1743461135643,-300.0,0.00015,2]
[356941963,1743461147475,-153.0726,0.00015,2]
[356941964,1743461152570,-150.0,0.00015,2]
[356941965,1743461157250,-152.35,0.00015,2]
[356941966,1743461171426,-170391.0,0.00015,2]
[356941967,1743461173729,-197.973586,0.00015,2]
[356941968,1743461190948,500.0,0.00033858,120]
[356941969,1743461223511,-152.35,0.00015,2]
[356941970,1743461230906,500.04,0.00033858,120]
[356941971,1743461248397,-150.0,0.0001498,2]
[356941972,1743461359407,-250.0,0.0001498,2]
[356941973,1743461368260,-151.6906,0.0001498,2]
[356941974,1743461404321,-81.04163366,0.0001498,2]
[356941975,1743461404345,-71.30836634,0.00014999,2]
[356941976,1743461407918,-168.48,0.00014999,2]
[356941977,1743461432194,-760.21163366,0.00014999,2]
[356941978,1743461432204,-150.0,0.00014999,2]
[356941979,1743461432214,-18.88125648,0.00015,2]
[356941980,1743461432229,-1863.88495208,0.00015,2]
[356941981,1743461432333,-455.85,0.00015,2]
[356941982,1743461432344,-664.24310131,0.00015,2]
[356941983,1743461432356,-401.7502562,0.00015,2]
[356941984,1743461432373,-587.62138112,0.00015,2]
[356941985,1743461432481,-622.91559,0.00015,2]
[356941986,1743461432493,-1884.4239171,0.00015,2]
[356941987,1743461432505,-738.44822419,0.00015,2]
[356941988,1743461432516,-2500.43950897,0.00015,2]
[356941989,1743461432527,-2390.37141977,0.00015,2]
[356941990,1743461432610,-142.54577566,0.00015,2]
[356942012,1743461433047,-213.12966376,0.00015,2]
[356942016,1743461438191,-900.24642222,0.00015,2]
[356942017,1743461438204,-4400.05,0.00015,2]
[356942018,1743461438215,-789.611823,0.00015,2]
[356942019,1743461438303,-24.71171142,0.00015,2]
[356942020,1743461438399,-3856.67487839,0.00015,2]
[356942023,1743461440649,-161.2700506,0.00015,2]
[356942024,1743461440680,-100.90025383,0.00015,2]
[356942025,1743461440695,-395.19013227,0.00015,2]
[356942026,1743461440745,-82.55595838,0.00015,2]
[356942027,1743461441162,-21669.0,0.00015,2]
[356942028,1743461441281,-74.23143457,0.00015,2]
[356942029,1743461441430,-153.21286198,0.00015,2]
[356942032,1743461443384,-423.07580699,0.00015,2]
[356942033,1743461443395,-2346.37994327,0.00015,2]
[356942034,1743461443407,-1627.05487211,0.00015,2]
[356942036,1743461444934,-647.33152689,0.00015,2]
[356942040,1743461446223,-282.78234949,0.00015,2]
[356942041,1743461446254,-1000.0,0.00015,2]
[356942042,1743461446454,-93.37376985,0.00015,2]
[356942043,1743461446471,-280.45,0.00015,2]
[356942044,1743461446529,-101.94142942,0.00015,2]
[356942045,1743461838784,2000.0,0.00024586,120]
[356942048,1743462378993,1600.0,0.00024662,120]
[356942049,1743462460142,154.9748851,0.00015,13]
[356942051,1743462632282,-150.0,0.0001499,2]
[356942053,1743462632605,-330.02307419,0.0001499,2]
[356942054,1743462632663,-185.64758259,0.0001499,2]
[356942055,1743462632672,-150.0,0.00014995,2]
[356942056,1743462632681,-98013.02594783,0.00015,2]
[356942060,1743462637283,-150.0,0.00015,2]
[356942062,1743462638308,-11830.37992814,0.00015,2]
[356942063,1743462638318,-150.0,0.00015174,2]
[356942065,1743462638327,-350.0,0.0001518,12]
[356942066,1743462638337,-1517.64,0.000153,2]
[356942067,1743462638346,-16050.0465815,0.000154,2]
[356942069,1743462638356,-488.05948126,0.000154,2]
[356942070,1743462638365,-4539.83315461,0.00016,2]
[356942071,1743462638376,-19512.66708127,0.00016,2]
[356942072,1743462638386,-150.0,0.00016489,2]
[356942073,1743462638396,-350.0,0.00016499,12]
[356942074,1743462638406,-250.0,0.00017,2]
[356942075,1743462638416,-500.0,0.00018658,2]
[356942076,1743462638431,-212.09274013,0.00019,2]
[356942077,1743462638441,-300.0,0.00019,2]
[356942078,1743462638452,-177.18,0.00019646,2]
[356942079,1743462638462,-8105.58687766,0.0002,4]
[356942080,1743462638473,-453.79779083,0.0002,4]
[356942081,1743462638483,-150.0,0.00021917,2]
[356942082,1743462638494,-22778.22994275,0.000225,2]
[356942083,1743462638506,-603.98035096,0.0002261,2]
[356942084,1743462638516,-503.30134404,0.0002271,2]
[356942085,1743462638525,-846.9,0.0002285,2]
[356942086,1743462638535,-500.0,0.00022932,2]
[356942087,1743462638544,-401.73030681,0.0002301,2]
[356942088,1743462638554,-150.0,0.00023287,2]
[356942089,1743462638564,-8838.34,0.00023368,2]
[356942090,1743462638574,-1187.16,0.00023368,2]
[356942091,1743462638583,-999.99,0.00023368,2]
[356942092,1743462638593,-150.99,0.00023368,2]
[356942093,1743462638603,-5321.7,0.00023368,2]
[356942094,1743462638613,-13304.87973113,0.0002361,7]
[356942095,1743462638623,-176.64,0.00024467,2]
[356942096,1743462638632,-176.64,0.00024528,2]
[356942097,1743462638642,-200.0,0.00024547,2]
[356942098,1743462638651,-200.0,0.0002455,2]
[356942099,1743462638661,-500.0,0.00024577,2]
[356942100,1743462638672,-176.64,0.0002459,2]
[356942101,1743462638682,-150.0,0.00024657,2]
[356942102,1743462638693,-1000.0,0.00024662,2]
[356942103,1743462638703,-1133.29,0.00024728,20]
[356942104,1743462638713,-150.0,0.00024744,7]
[356942105,1743462638723,-150.0,0.00024744,2]
[356942106,1743462638733,-1000.0,0.00024758,2]
[356942107,1743462638743,-250.0,0.00024801,2]
[356942108,1743462638753,-10938.72099505,0.00024901,2]
[356942109,1743462638762,-500.0,0.00024932,2]
[356942110,1743462638772,-2000.0,0.00025065,2]
[356942111,1743462638781,-154.8,0.00025071,2]
[356942112,1743462638791,-846.9,0.00025113,2]
[356942113,1743462638801,-5000.0,0.00025179,2]
[356942114,1743462638811,-23900.0,0.00025257,2]
[356942116,1743462638820,-150.0,0.00026027,2]
[356942118,1743462638830,-150.63,0.00026108,2]
[356942120,1743462638840,-161.61,0.00026849,2]
[356942122,1743462638850,-156.84,0.00026849,2]
[356942124,1743462638859,-846.9,0.00027377,2]
[356942125,1743462638868,-150.0,0.00027397,2]
[356942126,1743462638878,-150.63,0.00027478,2]
[356942127,1743462638888,-1600.0,0.00027744,120]
[356942128,1743462638897,-2130.462,0.00027764,17]
[356942129,1743462638907,-181.033,0.00027764,17]
[356942130,1743462638916,-1000.0,0.00027852,2]
[356942131,1743462638926,-150.0,0.00028767,2]
[356942132,1743462638935,-274.0,0.00028904,2]
[356942133,1743462638945,-10938.72099505,0.00029157,2]
[356942134,1743462638955,-172.81197861,0.00029541,2]
[356942135,1743462638965,-846.9,0.00029641,2]
[356942136,1743462638975,-383.78943485,0.0003,2]
[356942137,1743462638984,-156.02471048,0.00030136,2]
[356942138,1743462638994,-200.0,0.00030137,2]
[356942139,1743462639003,-1600.0,0.00030827,120]
[356942140,1743462639013,-1000.0,0.00030947,2]
[356942141,1743462639022,-13556.44337513,0.00031737,2]
[356942142,1743462639031,-846.9,0.00031905,2]
[356942143,1743462639040,-283.99,0.00032932,120]
[356942144,1743462639050,-10938.72099505,0.00033413,2]
[356942145,1743462639060,-618.67260504,0.00033759,6]
[356942146,1743462639070,-3226.30529284,0.00033845,2]
[356942147,1743462639080,-501.22,0.00033855,5]
[356942148,1743462639089,-589.0,0.00033859,30]
[356942149,1743462639099,-76906.0548684,0.00033859,2]
[356942150,1743462639164,-4893.74030086,0.00033859,2]
[356942151,1743462639175,-19725.80115728,0.00033859,2]
[356942152,1743462639184,-1176.27375207,0.00033859,2]
[356942153,1743462639194,-9208.6306428,0.00033859,10]
[356942154,1743462639203,-1600.0,0.0003391,120]
[356942155,1743462639213,-1000.0,0.00034042,2]
[356942156,1743462639222,-846.9,0.00034169,2]
[356942157,1743462639232,-3226.30529284,0.00034812,2]
[356942158,1743462639241,-500.0,0.00034822,2]
[356942159,1743462639250,-846.9,0.00036433,2]
[356942160,1743462639259,-3226.30529284,0.00036439,3]
[356942161,1743462639268,-425.37009393,0.00036449,120]
[356942162,1743462639278,-1282.20843496,0.00036449,120]
[356942163,1743462639287,-1107.5485595,0.00036449,120]
[356942164,1743462639296,-3226.30529284,0.00036983,3]
[356942165,1743462639305,-1600.0,0.00036992,120]
[356942166,1743462639315,-1000.0,0.00037136,2]
[356942167,1743462639325,-150.0,0.00037333,2]
[356942168,1743462639335,-443.6,0.00037333,2]
[356942169,1743462639346,-150.0,0.00037333,2]
[356942170,1743462639356,-347.09,0.00037333,2]
[356942171,1743462639366,-283.99,0.0003741,120]
[356942172,1743462639375,-3836.25357458,0.0003766,3]
[356942173,1743462639389,-615.0,0.0003766,3]
[356942174,1743462640459,-1257.13579336,0.0003766,3]
[356942175,1743462640791,-2296.34719485,0.00033759,2]
[356942176,1743462640801,-3970.52651058,0.0003766,3]
[356942177,1743462640811,-10938.72099505,0.0003767,2]
[356942178,1743462640820,-1852.38924189,0.00038401,3]
[356942204,1743462651628,-219.01,0.00036085,2]
[356942205,1743463510692,-171.04350908,0.00015,2]
[356942206,1743463555186,-250.0,0.0001489,2]
[356942208,1743463595136,-150.0,0.0001489,2]
[356942209,1743463622210,800.0,0.000146,5]
[356942210,1743463624338,1700.0,0.000147,5]
[356942211,1743463626470,2600.0,0.000148,5]
[356942212,1743463626887,382.0541,0.00014815,2]
[356942213,1743463628569,3500.0,0.000149,5]
[356942214,1743463702157,-202.18089398,0.0001489,2]
[356942219,1743463721232,160.78824,0.000144,2]
[356942223,1743463751571,-99.69428222,0.0001489,2]
[356942224,1743463751614,-217.90954179,0.000149,2]
[356942225,1743463751656,-219.95617831,0.000149,2]
[356942226,1743463751699,-177.09751916,0.000149,2]
[356942227,1743463751743,-38.54558208,0.000149,2]
[356942231,1743463776601,-164.48025168,0.000149,2]
[356942232,1743463776647,-183.56921508,0.000149,2]
[356942233,1743463776697,-602.51748934,0.000149,2]
[356942236,1743463801733,-1.46286162,0.000149,2]
[356942237,1743463801781,-8266.02357108,0.000149,2]
[356942254,1743463831680,-290.0391862,0.000149,2]
[356942255,1743463831689,-202.18089398,0.00014999,2]
[356942256,1743463831698,-9045.41345093,0.00015,2]
[356942257,1743463831709,-291.63362622,0.00015,2]
[356942258,1743463831721,-3313.22549007,0.00015,2]
[356942451,1743463837617,-131040.18973164,0.00015,2]
[356942452,1743463837821,-95301.78544444,0.00015,2]
[356942457,1743463839930,-0.00355414,0.00015,2]
[356942474,1743463861673,3425.04414219,0.0001485,2]
[356942475,1743463897543,1581.76,0.000251,120]
[356942476,1743464017059,-151.16351891,0.00014899,2]
[356942477,1743464022235,-175.5847004,0.00014899,2]
[356942478,1743464022258,-72.6440636,0.000149,2]
[356942480,1743464053899,2000.0,0.00024873,120]
[356942481,1743464054307,-100.16791501,0.000149,2]
[356942482,1743464054518,-122.23554779,0.000149,2]
[356942483,1743464057010,-152.35,0.000149,2]
[356942484,1743464102142,-171.04350908,0.00014899,2]
[356942485,1743464121660,400.578764,0.00014849,2]
[356942486,1743464162787,-165.474061,0.00014899,2]
[356942487,1743464174954,-134.525939,0.00014899,2]
[356942488,1743464174979,-65.67018371,0.000149,2]
[356942489,1743464223190,154.9748851,0.00015,13]
[356942490,1743464228827,200.19612271,0.000148,2]
[356942491,1743464310847,1818.59,0.000147,2]
[356942492,1743464310929,181.033,0.000147,2]
[356942494,1743464553060,-150.0,0.00014899,2]
[356942495,1743464553085,-8.42,0.00014899,2]
[356942496,1743464560812,-150.0,0.00014899,2]
[356942497,1743464583630,-43.76089398,0.00014899,2]
[356942498,1743464583653,-152.1509685,0.000149,2]
[356942499,1743464583675,-26.49160032,0.000149,2]
[356942500,1743464615902,-185.11649968,0.000149,2]
[356942501,1743464615925,-120.87853389,0.000149,2]
[356942502,1743464623385,688.6537096,0.00033857,120]
[356942503,1743464705905,161.0458,0.000148,2]
[356942504,1743464824188,400.0,0.000146,5]
[356942505,1743464826311,900.0,0.000147,5]
[356942506,1743464828385,1300.0,0.000148,5]
[356942507,1743464830505,1800.0,0.000149,5]
[356942508,1743464835327,-150.0,0.00014899,2]
[356942509,1743464835352,-153.89206611,0.000149,2]
[356942510,1743464835389,-152.94303389,0.000149,2]
[356942511,1743464895107,-300.0,0.00014899,2]
[356942512,1743464901989,-150.0,0.00014899,2]
[356942513,1743464906931,336.37308769,0.000148,2]
[356942514,1743464932347,-202.59119274,0.00014899,2]
[356942515,1743464952585,-300.0,0.00014899,2]
[356942516,1743464963775,-118.7171736,0.00014899,2]
[356942517,1743464963798,-34.3554264,0.000149,2]
[356942518,1743464981312,-150.0,0.000149,2]
[356942519,1743464989844,-84.43053971,0.000149,2]
[356942520,1743464989890,-9743.210898,0.000149,2]
[356942521,1743464990003,-9178.84457246,0.000149,2]
[356942522,1743464991376,-152.35,0.000149,2]
[356942525,1743465031845,-6755.71620559,0.000149,2]
[356942526,1743465031857,-1967.34484244,0.000149,2]
[356942527,1743465032469,-197.973586,0.000149,2]
[356942531,1743465038128,-25221.51029551,0.000149,2]
[356942532,1743465038248,-664.3492,0.000149,2]
[356942533,1743465038263,-164.57677272,0.000149,2]
[356942534,1743465038273,-6612.89415805,0.000149,2]
[356942535,1743465038282,-8343.8009,0.000149,2]
[356942536,1743465038291,-5507.6446,0.000149,2]
[356942537,1743465038301,-1337.6031,0.000149,2]
[356942538,1743465038310,-1026.3502,0.000149,2]
[356942539,1743465038319,-2067.0966,0.000149,2]
[356942540,1743465038328,-150.0,0.00014906,2]
[356942541,1743465038338,-150.0,0.00014947,2]
[356942542,1743465038347,-24380.33095736,0.00015,2]
[356942544,1743465040437,-0.00266294,0.00015,2]
[356942597,1743465042930,-301.27409656,0.00015,2]
[356942601,1743465044348,-0.9804271,0.00015,2]
[356942602,1743465045865,-6199.7029514,0.00015,2]
[356942603,1743465045876,-4947.60620979,0.00015,2]
[356942604,1743465045887,-582.8810972,0.00015,2]
[356942605,1743465045898,-342.6192,0.00015,2]
[356942614,1743465049839,-152.35,0.000149,2]
[356942615,1743465061446,307.98384103,0.0001485,2]
[356942616,1743465064021,-213.12966376,0.00014899,2]
[356942617,1743465069152,-161.2700506,0.00014899,2]
[356942618,1743465071583,-125.60028564,0.00014899,2]
[356942619,1743465071608,-27.61257634,0.00014899,2]
[356942620,1743465080311,-168.48,0.00014899,2]
[356942621,1743465092891,-150.0,0.00014899,2]
[356942622,1743465108400,231.85752003,0.000148,2]
[356942623,1743465117932,-153.90742366,0.00014899,2]
[356942624,1743465117955,-96.09257634,0.00014899,2]
[356942625,1743465122617,-151.6906,0.00014899,2]
[356942626,1743465123607,268.28805816,0.00033857,30]
[356942627,1743465214440,551.6906,0.000148,2]
[356942628,1743465303674,-150.0,0.00014899,2]
[356942629,1743465303700,-87.35,0.00014899,2]
[356942630,1743465321457,-151.0,0.00014899,2]
[356942631,1743465364960,-150.0,0.00014899,2]
[356942632,1743465416665,151.0,0.000148,2]
[356942633,1743465443570,-150.0,0.00020602,7]
[356942634,1743465443597,-151.0,0.00022587,7]
[356942635,1743465443620,-153.545207,0.00022587,7]
[356942636,1743465443644,-154.381087,0.00022587,7]
[356942637,1743465443668,-151.0,0.00022587,7]
[356942638,1743465443691,-151.0,0.00022587,7]
[356942639,1743465443714,-151.0,0.00022587,7]
[356942640,1743465443738,-151.0,0.00022587,7]
[356942641,1743465443760,-151.0,0.00022587,7]
[356942642,1743465443783,-151.0,0.00022587,7]
[356942643,1743465443805,-151.0,0.00022587,7]
[356942644,1743465443828,-151.0,0.00022587,7]
[356942645,1743465443851,-151.0,0.00022587,7]
[356942646,1743465443876,-151.0,0.00022587,7]
[356942647,1743465443900,-151.0,0.00022587,7]
[356942648,1743465443924,-151.0,0.00022587,7]
[356942649,1743465443949,-151.0,0.00022587,7]
[356942650,1743465443972,-151.0,0.00022587,7]
[356942651,1743465443997,-151.0,0.00022587,7]
[356942652,1743465444023,-250.354586,0.00022587,7]
[356942653,1743465444050,-151.0,0.00022587,7]
[356942654,1743465444074,-151.0,0.00022587,7]
[356942655,1743465444098,-151.0,0.00022587,7]
[356942656,1743465444122,-151.0,0.00022587,7]
[356942657,1743465444145,-151.0,0.00022587,7]
[356942658,1743465444170,-669.116926,0.00022587,7]
[356942659,1743465444351,-669.116926,0.00022587,7]
[356942660,1743465444376,-297.299738,0.00022587,7]
[356942661,1743465444402,-151.0,0.00023011,7]
[356942662,1743465444426,-151.0,0.00023011,7]
[356942663,1743465444450,-285.77462,0.00023011,7]
[356942664,1743465444474,-151.0,0.00023011,7]
[356942665,1743465444500,-151.0,0.00023011,7]
[356942666,1743465444525,-151.0,0.00023011,7]
[356942667,1743465444550,-151.0,0.00023011,7]
[356942668,1743465444574,-151.0,0.00023011,7]
[356942669,1743465444597,-151.0,0.00023011,7]
[356942670,1743465444623,-151.0,0.00023011,7]
[356942671,1743465444646,-151.0,0.00023011,7]
[356942672,1743465444670,-284.584946,0.00023011,7]
[356942673,1743465444695,-151.0,0.00023011,7]
[356942674,1743465444718,-273.746774,0.00023011,7]
[356942675,1743465444741,-151.0,0.00023011,7]
[356942676,1743465444765,-368.439063,0.00023011,7]
[356942677,1743465444788,-151.0,0.00023011,7]
[356942678,1743465444811,-368.439063,0.00023011,7]
[356942679,1743465444835,-151.0,0.00023011,7]
[356942680,1743465444858,-151.0,0.00023011,7]
[356942681,1743465444881,-1219.32411,0.00023011,7]
[356942682,1743465444906,-1219.32411,0.00023011,7]
[356942683,1743465444930,-151.0,0.00023011,7]
[356942684,1743465444955,-151.0,0.00023011,7]
[356942685,1743465444978,-151.0,0.00023011,7]
[356942686,1743465445002,-437.812877,0.00023011,7]
[356942687,1743465445026,-437.812877,0.00023011,7]
[356942688,1743465445050,-151.0,0.00023011,7]
[356942689,1743465445074,-151.0,0.00023011,7]
[356942690,1743465445100,-151.0,0.00023011,7]
[356942691,1743465445125,-151.0,0.00023011,7]
[356942692,1743465445152,-151.0,0.00023011,7]
[356942693,1743465445177,-151.0,0.00023011,7]
[356942694,1743465445201,-399.21313,0.00023011,7]
[356942695,1743465445224,-399.21313,0.00023011,7]
[356942696,1743465445249,-151.0,0.00024458,7]
[356942697,1743465445272,-151.0,0.000248,7]
[356942698,1743465445298,-151.0,0.000248,7]
[356942699,1743465445322,-151.0,0.000248,7]
[356942700,1743465445346,-151.0,0.000248,7]
[356942701,1743465445369,-151.0,0.000248,7]
[356942702,1743465445392,-151.0,0.000248,7]
[356942703,1743465445421,-151.0,0.000248,7]
[356942704,1743465445443,-151.0,0.000248,7]
[356942705,1743465445467,-283.20128,0.000248,7]
[356942706,1743465445490,-151.0,0.000248,7]
[356942707,1743465445513,-368.439063,0.000248,7]
[356942708,1743465445536,-151.0,0.000248,7]
[356942709,1743465445560,-368.439063,0.000248,7]
[356942710,1743465445584,-151.0,0.000248,7]
[356942711,1743465445607,-151.0,0.000248,7]
[356942712,1743465445633,-1219.32411,0.000248,7]
[356942713,1743465445658,-1219.32411,0.000248,7]
[356942714,1743465445682,-239.699943,0.000248,7]
[356942715,1743465445705,-151.0,0.000248,7]
[356942716,1743465445729,-151.0,0.000248,7]
[356942717,1743465445754,-437.812877,0.000248,7]
[356942718,1743465445778,-437.812877,0.000248,7]
[356942719,1743465445803,-151.0,0.000248,7]
[356942720,1743465445828,-151.0,0.000248,7]
[356942721,1743465445852,-151.0,0.000248,7]
[356942722,1743465445876,-151.0,0.000248,7]
[356942723,1743465446032,-151.0,0.000248,7]
[356942724,1743465446056,-151.0,0.000248,7]
[356942725,1743465446080,-151.0,0.000248,7]
[356942726,1743465446105,-151.0,0.000248,7]
[356942727,1743465446127,-151.0,0.000248,7]
[356942728,1743465446151,-151.0,0.000248,7]
[356942729,1743465446175,-151.0,0.000248,7]
[356942730,1743465446198,-151.0,0.000248,7]
[356942731,1743465446220,-247.768353,0.000248,7]
[356942732,1743465446245,-399.21313,0.000248,7]
[356942733,1743465446269,-399.21313,0.000248,7]
[356942734,1743465446295,-151.0,0.000248,7]
[356942735,1743465446318,-217.293802,0.000248,7]
[356942736,1743465446344,-179.050808,0.000248,7]
[356942737,1743465446368,-151.0,0.000248,7]
[356942738,1743465446390,-151.0,0.000248,7]
[356942739,1743465446413,-669.116926,0.000248,7]
[356942740,1743465446441,-669.116926,0.000248,7]
[356942741,1743465446464,-151.0,0.000249,7]
[356942742,1743465446486,-151.0,0.000249,7]
[356942743,1743465446509,-203.906927,0.000249,7]
[356942744,1743465446532,-203.906927,0.000249,7]
[356942745,1743465446555,-197.388422,0.000249,7]
[356942746,1743465446577,-197.388422,0.000249,7]
[356942747,1743465446600,-151.0,0.000249,7]
[356942748,1743465446624,-151.0,0.000249,7]
[356942749,1743465446647,-151.0,0.000249,7]
[356942750,1743465446670,-151.0,0.000249,7]
[356942751,1743465446694,-163.239924,0.000249,7]
[356942752,1743465446719,-151.0,0.000249,7]
[356942753,1743465446742,-151.0,0.000249,7]
[356942754,1743465446766,-151.0,0.000249,7]
[356942755,1743465446790,-669.116926,0.000249,7]
[356942756,1743465446816,-669.116926,0.000249,7]
[356942757,1743465446842,-152.546926,0.000249,7]
[356942758,1743465446865,-151.0,0.00027123,7]
[356942759,1743465446889,-151.0,0.00027123,7]
[356942760,1743465446912,-151.0,0.00027123,7]
[356942761,1743465446934,-165.673749,0.00027123,7]
[356942762,1743465446958,-151.0,0.00027123,7]
[356942763,1743465446981,-151.0,0.00027123,7]
[356942764,1743465447005,-151.0,0.00027123,7]
[356942765,1743465447036,-151.0,0.00027123,7]
[356942766,1743465447061,-151.0,0.00027123,7]
[356942767,1743465447087,-368.439063,0.00027123,7]
[356942768,1743465447111,-151.0,0.00027123,7]
[356942769,1743465447136,-368.439063,0.00027123,7]
[356942770,1743465447160,-151.0,0.00027123,7]
[356942771,1743465447183,-151.0,0.00027123,7]
[356942772,1743465447207,-1219.32411,0.00027123,7]
[356942773,1743465447231,-1219.32411,0.00027123,7]
[356942774,1743465447255,-151.0,0.00027123,7]
[356942775,1743465447280,-437.812877,0.00027123,7]
[356942776,1743465447306,-437.812877,0.00027123,7]